bitfinex-derivatives/quotes_ETHF0:USTF0_20250320
["timestamp","ask_amount","ask_price","bid_price","bid_amount"]
[1742480372843,1.00536615,2005.1,2004.9,0.9979]
[1742480373044,0.00748615,2005.1,2005.0,0.99788]
[1742480373235,9.274,2005.6,2005.1,2.49458]
[1742480373435,4.7786,2005.5,2005.4,0.99766]
[1742480373639,5.70127,2006.0,2005.4,4.5701]
[1742480373843,0.9975,2005.8,2005.7,0.99751]
[1742480374147,5.77607,2005.9,2005.8,0.99748]
[1742480374337,0.99748,2005.8,2005.7,5.5676]
[1742480374542,7.27236,2005.8,2005.5,0.00748615]
[1742480374745,0.99758,2005.6,2005.5,0.00748615]
[1742480375242,4.7786,2005.8,2005.5,0.00748615]
[1742480375446,0.99758,2005.6,2005.5,1.00508615]
[1742480375649,0.99758,2005.6,2005.5,0.00748615]
[1742480377139,0.99783,2005.1,2005.0,3.2078]
[1742480378144,4.783,2005.3,2005.0,3.2078]
[1742480378336,5.78824615,2005.3,2005.2,0.99778]
[1742480378543,4.79048615,2005.3,2005.2,0.99778]
[1742480378741,4.79048615,2005.3,2005.0,3.2078]
[1742480379039,0.99783,2005.1,2005.0,3.2078]
[1742480379248,0.99781,2005.2,2005.1,0.99781]
[1742480379545,4.79048615,2005.3,2005.2,0.99778]
[1742480380141,4.79048615,2005.3,2005.0,7.7187]
[1742480380557,4.79048615,2005.3,2005.2,0.99778]
[1742480380952,5.78821615,2005.3,2005.2,0.99778]
[1742480381249,4.79048615,2005.3,2005.2,0.99778]
[1742480381752,0.00748615,2005.3,2005.2,4.77978]
[1742480382348,0.00748615,2005.3,2005.2,0.99778]
[1742480382855,0.99766,2005.5,2005.2,4.5175]
[1742480383052,5.55495,2005.5,2005.3,3.2078]
[1742480383248,0.99761,2005.6,2005.4,0.99768]
[1742480383453,4.5573,2005.7,2005.6,0.99758]
[1742480383753,0.99759,2005.6,2005.5,0.99759]
[1742480383955,5.55487,2005.7,2005.6,0.99758]
[1742480384349,7.8153,2006.1,2005.9,0.99743]
[1742480384552,4.5573,2006.0,2005.8,0.99743]
[1742480384854,5.55468,2006.0,2005.9,5.51493]
[1742480385151,4.5573,2006.0,2005.9,8.72273]
[1742480385948,0.99738,2006.0,2005.9,8.72272]
[1742480386155,3.2078,2006.5,2005.9,10.21879]
[1742480386349,4.98345,2007.5,2006.5,0.99711]
[1742480386350,0.99712,2006.6,2006.5,0.99711]
[1742480386549,2.49237,2006.9,2006.5,3.2078]
[1742480386746,5.51466,2006.7,2006.6,4.7129]
[1742480386943,0.99688,2007.1,2007.0,0.99687]
[1742480387144,0.07905138,2008.0,2007.0,8.319]
[1742480387357,0.07905138,2008.0,2007.7,3.2078]
[1742480387654,0.99649,2007.8,2007.7,3.2078]
[1742480390055,0.07905138,2008.0,2007.7,3.2078]
[1742480390257,0.07905138,2008.0,2007.7,7.1428]
[1742480390648,1.07544138,2008.0,2007.8,0.99647]
[1742480390849,1.07544138,2008.0,2007.9,0.99644]
[1742480391050,0.07905138,2008.0,2007.9,0.99644]
[1742480391452,2.48974,2009.0,2008.0,2.49098]
[1742480391650,0.99614,2008.5,2008.4,3.2078]
[1742480392151,5.47704,2008.5,2008.4,3.2078]
[1742480392351,0.99611,2008.6,2008.5,0.99609]
[1742480392559,0.99614,2008.5,2008.4,3.2078]
[1742480392855,5.47704,2008.5,2008.4,3.2078]
[1742480393260,2.49011,2008.7,2008.4,3.2078]
[1742480393459,0.99614,2008.5,2008.4,3.2078]
[1742480394252,0.99614,2008.5,2008.4,4.20399]
[1742480394453,0.99614,2008.5,2008.4,3.2078]
[1742480394652,5.47702,2008.6,2008.5,0.99614]
[1742480394857,5.47702,2008.6,2008.4,7.9173]
[1742480395158,5.47702,2008.6,2008.4,8.91345]
[1742480395363,0.99614,2008.5,2008.4,7.9173]
[1742480395754,0.99614,2008.5,2008.4,3.2078]
[1742480397263,0.99634,2008.1,2008.0,3.2078]
[1742480398160,5.67189,2008.2,2008.1,0.99634]
[1742480398356,0.99634,2008.1,2008.0,4.20416]
[1742480398564,0.99634,2008.1,2008.0,3.2078]
[1742480398963,0.99644,2007.9,2007.8,0.00746733]
[1742480400362,4.20424,2007.9,2007.8,0.00746733]
[1742480400764,10.69024,2007.9,2007.1,3.2078]
[1742480401068,5.69946,2007.5,2006.7,53.1668]
[1742480401260,0.99677,2007.3,2007.2,0.99677]
[1742480401463,0.9968,2007.2,2007.1,0.9968]
[1742480401664,7.11184,2007.4,2007.0,3.2078]
[1742480401863,4.6201,2007.1,2007.0,4.20469]
[1742480402059,5.61694,2007.1,2007.0,3.2078]
[1742480402863,0.99689,2007.0,2006.9,0.00746733]
[1742480403062,5.61699,2007.0,2006.9,0.00746733]
[1742480404266,0.99708,2006.6,2006.5,40.8]
[1742480404463,0.99708,2006.6,2006.5,41.79713]
[1742480404659,0.99708,2006.6,2006.5,40.8]
[1742480405265,4.5136,2006.7,2006.5,0.99712]
[1742480405461,0.99709,2006.6,2006.3,13.40346733]
[1742480405666,4.5136,2006.7,2006.3,13.40346733]
[1742480405667,0.99718,2006.4,2006.3,4.90866733]
[1742480405876,0.99717,2006.5,2006.3,53.69796733]
[1742480406080,0.99711,2006.6,2006.4,0.99718]
[1742480406261,0.99713,2006.5,2006.4,4.7815]
[1742480406575,5.51073,2006.5,2006.4,4.7815]
[1742480406769,6.39046,2006.9,2006.4,0.99714]
[1742480407075,6.39046,2006.9,2006.6,3.2078]
[1742480407076,5.65445,2006.7,2006.6,3.2078]
[1742480407972,0.99718,2006.4,2006.3,40.80746733]
[1742480408172,0.99718,2006.4,2006.3,0.00746733]
[1742480408369,2.49307,2006.4,2006.2,3.2078]
[1742480408681,3.896,2006.6,2005.8,40.8]
[1742480408682,2.49334,2006.1,2005.8,40.8]
[1742480408877,5.65478,2006.0,2005.9,3.2078]
[1742480409273,0.99743,2005.9,2005.8,40.8]
[1742480409472,5.65483,2005.9,2005.8,44.0078]
[1742480409666,0.99758,2005.6,2005.5,3.2078]
[1742480409973,0.99758,2005.6,2005.5,4.20543]
[1742480410177,0.99758,2005.6,2005.5,3.2078]
[1742480410480,0.99758,2005.6,2005.5,4.20543]
[1742480410772,4.7343,2005.7,2005.5,7.9252]
[1742480410975,0.99758,2005.6,2005.5,7.9252]
[1742480411176,0.99758,2005.6,2005.5,3.2078]
[1742480411379,0.99763,2005.5,2005.4,40.8]
[1742480411573,0.99768,2005.4,2005.3,4.72486733]
[1742480411774,0.99768,2005.4,2005.3,0.00746733]
[1742480412073,0.99788,2005.0,2004.9,44.0078]
[1742480412271,7.22865,2005.3,2004.9,45.00571]
[1742480412467,0.99788,2005.0,2004.9,3.2078]
[1742480413076,0.99788,2005.0,2004.9,44.0078]
[1742480414477,4.7343,2005.3,2004.9,44.0078]
[1742480414674,0.99788,2005.0,2004.9,44.0078]
[1742480415277,0.99796,2004.9,2004.7,4.21329733]
[1742480415477,0.99798,2004.8,2004.7,3.21526733]
[1742480415774,0.99798,2004.8,2004.7,44.01526733]
[1742480415979,0.99798,2004.8,2004.7,0.00746733]
[1742480416178,0.99813,2004.5,2004.4,49.2698]
[1742480416380,0.99828,2004.2,2004.1,3.2078]
[1742480416588,0.99828,2004.2,2004.1,44.0078]
[1742480416975,0.99828,2004.2,2004.1,3.2078]
[1742480417685,0.99838,2004.0,2003.9,3.21284095]
[1742480418278,4.544,2004.1,2003.9,3.21284095]
[1742480418480,0.99833,2004.1,2003.9,3.21284095]
[1742480418781,0.99837,2004.1,2003.9,3.21284095]
[1742480418984,0.99832,2004.2,2003.9,4.21126095]
[1742480419183,0.99833,2004.1,2004.0,4.7652]
[1742480419882,0.99835,2004.1,2003.9,3.21284095]
[1742480420078,4.544,2004.4,2004.0,0.99837]
[1742480420272,4.544,2004.4,2004.1,4.7652]
[1742480420470,0.99828,2004.2,2004.1,4.7652]
[1742480420684,0.99828,2004.2,2004.1,45.5652]
[1742480420883,4.544,2004.4,2004.1,45.5652]
[1742480421077,3.87,2004.7,2004.3,4.206]
[1742480421382,0.99815,2004.5,2004.4,4.7652]
[1742480421586,4.4222,2004.6,2004.3,3.2078]
[1742480421587,0.99818,2004.4,2004.3,3.2078]
[1742480421882,0.99828,2004.2,2004.1,40.8]
[1742480422077,4.7886,2004.3,2004.0,7.9956]
[1742480422382,0.99833,2004.1,2004.0,7.9956]
[1742480422573,0.99833,2004.1,2004.0,48.7956]
[1742480422975,2.49461,2005.1,2004.0,98.7646]
[1742480423178,0.99816,2004.5,2004.4,3.2078]
[1742480423579,2.4953,2004.6,2004.1,3.2078]
[1742480423775,4.7886,2004.4,2004.1,3.2078]
[1742480423979,0.99828,2004.2,2004.1,3.2078]
[1742480425780,0.99828,2004.2,2003.9,0.00504095]
[1742480425781,0.99838,2004.0,2003.9,0.00504095]
[1742480426484,4.3634,2004.1,2003.9,0.00504095]
[1742480426684,0.99838,2004.0,2003.9,5.52455095]
[1742480426988,0.99836,2004.1,2003.9,5.52455095]
[1742480427188,0.99838,2004.0,2003.9,5.52455095]
[1742480427486,0.99838,2004.0,2003.9,4.52614095]
[1742480428183,0.99838,2004.0,2003.9,0.00504095]
[1742480428384,0.99838,2004.0,2003.9,4.39764095]
[1742480428781,0.99838,2004.0,2003.9,0.00504095]
[1742480429388,0.99838,2004.0,2003.9,4.39764095]
[1742480429589,0.99838,2004.0,2003.9,0.00504095]
[1742480430682,0.99838,2004.0,2003.9,45.19764095]
[1742480431088,0.99838,2004.0,2003.9,0.00504095]
[1742480432384,0.99838,2004.0,2003.9,40.80504095]
[1742480432592,0.99838,2004.0,2003.9,45.36584095]
[1742480432985,0.99838,2004.0,2003.9,0.00504095]
[1742480434294,4.87238,2004.0,2003.9,0.00504095]
[1742480437286,0.99838,2004.0,2003.9,0.00504095]
[1742480438290,0.99838,2004.0,2003.9,4.77514095]
[1742480438894,0.99838,2004.0,2003.9,0.00504095]
[1742480439289,4.4724,2004.1,2003.9,0.00504095]
[1742480439290,5.47076,2004.1,2003.9,4.77514095]
[1742480439596,0.99838,2004.0,2003.9,4.77514095]
[1742480440494,0.99838,2004.0,2003.9,0.00504095]
[1742480441391,0.99838,2004.0,2003.9,4.48364095]
[1742480441992,4.4724,2004.1,2003.9,4.48364095]
[1742480442198,4.8198,2004.9,2004.0,6.33291]
[1742480442393,4.768,2004.7,2004.1,4.4786]
[1742480442594,5.76603,2004.7,2004.6,3.2078]
[1742480442989,3.84746733,2005.0,2004.6,3.2078]
[1742480443295,5.77338733,2005.0,2004.9,3.2078]
[1742480443493,0.00746733,2005.0,2004.9,3.2078]
[1742480443800,0.00746733,2005.0,2004.9,4.20573]
[1742480443996,2.49378,2005.8,2005.2,0.99773]
[1742480444191,2.49361,2005.9,2005.4,3.2078]
[1742480444192,0.99763,2005.5,2005.4,3.2078]
[1742480444393,0.99763,2005.5,2005.4,7.786]
[1742480445595,0.99773,2005.3,2005.2,0.00746733]
[1742480445997,0.99773,2005.3,2005.2,4.58566733]
[1742480446489,0.99773,2005.3,2005.2,0.00746733]
[1742480446697,4.82273,2005.3,2005.2,0.00746733]
[1742480447499,9.27873,2005.3,2005.2,7.33e-06]
[1742480447692,11.77873,2005.3,2005.2,7.33e-06]
[1742480449801,9.27873,2005.3,2005.2,7.33e-06]
[1742480450004,5.45373,2005.3,2005.2,7.33e-06]
[1742480450206,9.26173,2005.3,2005.2,7.33e-06]
[1742480450502,5.45373,2005.3,2005.2,7.33e-06]
[1742480451803,7.95373,2005.3,2005.2,7.33e-06]
[1742480452507,9.26473,2005.3,2005.2,7.33e-06]
[1742480452893,5.45373,2005.3,2005.2,7.33e-06]
[1742480453098,5.45373,2005.3,2005.2,4.80540733]
[1742480453697,0.99773,2005.3,2005.2,4.80540733]
[1742480454300,0.99773,2005.3,2005.2,7.33e-06]
[1742480457609,4.20553,2005.3,2005.2,7.33e-06]
[1742480457797,6.70553,2005.3,2005.2,7.33e-06]
[1742480459409,4.20553,2005.3,2005.2,7.33e-06]
[1742480459610,7.98553,2005.3,2005.2,7.33e-06]
[1742480460112,4.77773,2005.3,2005.2,7.33e-06]
[1742480461010,7.98553,2005.3,2005.2,7.33e-06]
[1742480461403,7.98553,2005.3,2004.7,7.7719]
[1742480461404,0.99798,2004.8,2004.7,3.2078]
[1742480461709,4.77398,2004.8,2004.7,3.2078]
[1742480463407,0.99798,2004.8,2004.7,3.2078]
[1742480464107,5.50308,2004.8,2004.7,3.2078]
[1742480464620,0.99797,2004.9,2004.7,3.2078]
[1742480464910,3.769,2005.1,2004.8,4.34]
[1742480465100,0.99786,2005.1,2005.0,3.2078]
[1742480467106,0.99798,2004.8,2004.7,3.2078]
[1742480467307,0.99798,2004.8,2004.7,7.5478]
[1742480468311,0.99796,2004.9,2004.7,8.54583]
[1742480468612,0.99786,2005.1,2004.9,0.99791]
[1742480468812,4.5668,2005.4,2005.3,0.99773]
[1742480469011,0.99768,2005.4,2005.3,4.20551]
[1742480469307,0.99766,2005.5,2005.3,4.2055]
[1742480469510,0.99768,2005.4,2005.3,7.8686]
[1742480470306,0.99768,2005.4,2005.3,3.2078]
[1742480471206,0.99783,2005.1,2005.0,6.9668]
[1742480471404,0.99783,2005.1,2005.0,3.2078]
[1742480472309,2.49409,2005.5,2005.1,0.99783]
[1742480472506,0.99768,2005.4,2005.3,4.20553]
[1742480472817,2.50135733,2005.7,2005.3,4.20553]
[1742480473019,0.99763,2005.5,2005.4,4.8193]
[1742480473408,0.99768,2005.4,2005.3,3.2078]
[1742480473609,5.64648,2005.4,2005.3,3.2078]
[1742480474310,0.99783,2005.1,2005.0,7.9199]
[1742480474714,4.6488,2005.2,2004.8,4.7227]
[1742480474910,0.99793,2004.9,2004.8,9.4348]
[1742480479920,0.99798,2004.8,2004.7,3.2078]
[1742480480114,5.77448,2004.8,2004.7,3.2078]
[1742480481016,0.99798,2004.8,2004.7,4.20583]
[1742480481222,2.49464,2005.1,2004.7,4.20583]
[1742480481523,0.99793,2004.9,2004.8,4.4729]
[1742480481822,0.99798,2004.8,2004.7,7.7854]
[1742480482020,5.77448,2004.8,2004.7,7.7854]
[1742480484020,0.99808,2004.6,2004.5,0.00504095]
[1742480484226,0.99808,2004.6,2004.5,1e-08]
[1742480484721,5.71698,2004.6,2004.5,1e-08]
[1742480485223,5.71698,2004.6,2004.5,4.58040001]
[1742480485525,0.99808,2004.6,2004.5,4.58040001]
[1742480486113,0.99806,2004.7,2004.5,5.57850001]
[1742480486318,0.99806,2004.7,2004.6,4.7565]
[1742480489724,0.99806,2004.7,2004.6,5.75458]
[1742480489919,0.99806,2004.7,2004.6,4.7565]
[1742480490125,0.99806,2004.7,2004.6,9.44758]
[1742480490327,0.99803,2004.7,2004.6,9.44755]
[1742480490919,0.99802,2004.8,2004.7,0.99801]
[1742480491121,0.99802,2004.8,2004.7,8.84691]
[1742480491328,0.99802,2004.8,2004.7,7.8489]
[1742480492326,0.99802,2004.8,2004.7,3.2078]
[1742480493121,0.99808,2004.6,2004.5,1e-08]
[1742480494034,5.54448,2004.6,2004.5,1e-08]
[1742480494325,9.22648,2004.6,2004.5,1e-08]
[1742480495729,5.54448,2004.6,2004.5,1e-08]
[1742480496122,5.54448,2004.6,2004.5,4.79240001]
[1742480496323,5.54448,2004.6,2004.5,1e-08]
[1742480498530,9.21348,2004.6,2004.5,1e-08]
[1742480499124,11.71348,2004.6,2004.5,1e-08]
[1742480502030,2.49533,2004.5,2003.7,46.11]
[1742480502330,0.99843,2003.9,2003.8,4.4978]
[1742480502731,0.99842,2004.0,2003.8,7.7056]
[1742480502936,3.2078,2004.3,2003.9,8.1518]
[1742480503136,1.00579733,2004.1,2004.0,4.732]
[1742480503332,1.00579733,2004.1,2004.0,9.2298]
[1742480503533,1.00579733,2004.1,2004.0,50.0298]
[1742480504422,1.00579733,2004.1,2004.0,51.02818]
[1742480504628,0.00746733,2004.1,2004.0,51.02818]
[1742480504829,0.00746733,2004.1,2004.0,57.17718]
[1742480505238,1.00579733,2004.1,2004.0,57.17718]
[1742480506333,1.00579733,2004.1,2004.0,56.1788]
[1742480506534,1.00579733,2004.1,2004.0,9.2298]
[1742480507136,1.00579733,2004.1,2004.0,4.4978]
[1742480508529,1.00579733,2004.1,2004.0,5.49618]
[1742480508731,1.00579733,2004.1,2004.0,4.4978]
[1742480511533,0.99843,2003.9,2003.8,7.6899]
[1742480512945,0.99843,2003.9,2003.8,12.0423]
[1742480514650,0.99848,2003.8,2003.7,46.11]
[1742480514949,5.38348,2003.8,2003.7,4.5952]
[1742480515246,0.99847,2003.9,2003.7,4.5952]
[1742480515441,0.00746733,2004.1,2004.0,0.99838]
[1742480515645,0.00746733,2004.1,2003.8,6.8228]
[1742480515646,0.99838,2004.0,2003.9,4.5952]
[1742480515838,0.00746733,2004.1,2003.9,5.59361]
[1742480516038,1.00580733,2004.1,2003.9,4.5952]
[1742480516245,1.00580733,2004.1,2004.0,4.578]
[1742480516643,1.00580733,2004.1,2004.0,9.1967]
[1742480517144,1.00580733,2004.1,2004.0,4.6187]
[1742480517850,0.99843,2003.9,2003.8,3.2078]
[1742480518652,0.99848,2003.8,2003.7,4.578]
[1742480519145,0.99848,2003.8,2003.7,9.142]
[1742480520846,0.00746733,2004.1,2003.7,9.142]
[1742480521052,0.00746733,2004.1,2003.9,3.2078]
[1742480521256,1.00582733,2004.1,2004.0,5.56238]
[1742480521549,0.99824,2004.4,2004.3,0.99821]
[1742480521747,0.99824,2004.4,2004.3,6.8148]
[1742480521950,0.99824,2004.4,2004.3,7.81303]
[1742480522151,0.99824,2004.4,2004.3,6.8148]
[1742480522548,0.99824,2004.4,2004.3,7.81303]
[1742480522856,0.99818,2004.4,2004.3,7.81299]
[1742480523352,0.99818,2004.4,2004.3,3.2078]
[1742480523746,0.99818,2004.4,2004.3,4.20603]
[1742480523949,0.99818,2004.4,2004.3,3.2078]
[1742480525855,0.99818,2004.4,2004.3,4.20603]
[1742480526057,0.99818,2004.4,2004.3,3.2078]
[1742480526553,53.6622518,2005.8,2004.3,3.2078]
[1742480526554,0.9978,2005.2,2004.7,2.49497]
[1742480526753,0.99785,2005.1,2005.0,3.2078]
[1742480526946,5.59575,2005.1,2005.0,3.2078]
[1742480527249,0.99793,2004.9,2004.8,54.4661]
[1742480527454,7.09255,2005.1,2004.7,3.2078]
[1742480527455,0.99798,2004.8,2004.7,3.2078]
[1742480527651,5.59588,2004.8,2004.7,3.2078]
[1742480527848,5.59588,2004.8,2004.4,8.0912]
[1742480527849,0.99813,2004.5,2004.4,8.0912]
[1742480528450,0.99813,2004.5,2004.4,3.616]
[1742480528854,0.99818,2004.4,2004.3,46.121]
[1742480529249,0.99816,2004.5,2004.3,47.1192]
[1742480529454,0.99812,2004.6,2004.4,0.99816]
[1742480529652,8.7598,2004.7,2004.5,0.99812]
[1742480529861,4.3554,2004.7,2004.6,0.99808]
[1742480530153,0.99808,2004.6,2004.5,0.99812]
[1742480530357,5.35344,2004.7,2004.6,0.99808]
[1742480530552,2.49485,2004.9,2004.5,3.2078]
[1742480530553,0.998,2004.8,2004.7,0.99803]
[1742480530756,14.53051,2005.0,2004.8,0.99798]
[1742480530757,0.99793,2004.9,2004.8,0.99798]
[1742480530951,0.99799,2004.8,2004.7,0.99799]
[1742480531151,0.99797,2004.9,2004.8,0.99797]
[1742480531356,0.00746733,2005.1,2004.7,3.617]
[1742480531556,0.99796,2004.9,2004.8,0.99795]
[1742480531751,0.99798,2004.9,2004.8,0.99795]
[1742480531959,0.99793,2004.9,2004.8,4.20577]
[1742480532155,0.99808,2004.6,2004.5,3.2078]
[1742480532764,0.99828,2004.2,2004.1,1.00576733]
[1742480532954,0.99827,2004.3,2004.2,0.99825]
[1742480533159,0.99823,2004.4,2004.3,0.99821]
[1742480533855,4.3813,2004.5,2004.1,2.50327733]
[1742480534157,0.9982,2004.4,2004.3,0.99818]
[1742480534358,0.9982,2004.4,2004.3,4.64018]
[1742480534556,0.99818,2004.4,2004.3,7.84798]
[1742480534751,4.3813,2004.5,2004.3,7.84798]
[1742480534956,5.37946,2004.5,2004.4,0.99818]
[1742480535559,0.99818,2004.4,2004.3,3.642]
[1742480535862,0.99828,2004.2,2004.1,0.00746733]
[1742480536159,0.99828,2004.2,2004.1,1.00579733]
[1742480536359,0.99828,2004.2,2004.1,0.00746733]
[1742480537354,5.63988,2004.2,2004.1,0.00746733]
[1742480537559,5.63988,2004.2,2004.1,1.00579733]
[1742480537761,5.63988,2004.2,2004.1,0.00746733]
[1742480537960,5.63988,2004.2,2004.1,1.00579733]
[1742480539253,0.99823,2004.4,2004.1,3.50579733]
[1742480539452,0.99821,2004.4,2004.3,0.99818]
[1742480539648,0.99823,2004.3,2004.2,4.62224]
[1742480539862,5.63983,2004.3,2004.2,44.424]
[1742480540066,5.63983,2004.3,2004.2,4.62228]
[1742480541065,5.63983,2004.3,2004.2,0.99828]
[1742480541265,0.99822,2004.4,2004.3,0.99818]
[1742480541564,0.99822,2004.4,2004.3,4.61718]
[1742480541966,5.88892,2004.4,2004.3,3.619]
[1742480542166,5.88892,2004.4,2004.3,4.61723]
[1742480542655,5.88892,2004.4,2004.3,3.619]
[1742480542860,0.99828,2004.2,2004.1,45.42171733]
[1742480543054,0.99827,2004.3,2004.2,0.99823]
[1742480543455,10.37346,2004.5,2004.4,0.99818]
[1742480543656,5.76676,2004.5,2004.4,0.99818]
[1742480543862,0.99816,2004.5,2004.4,0.99818]
[1742480544665,4.8887,2004.6,2004.3,8.8731]
[1742480544666,0.99818,2004.4,2004.3,8.8731]
[1742480544860,5.88688,2004.4,2004.3,8.8731]
[1742480545060,4.8887,2004.4,2004.3,8.8731]
[1742480545268,0.99811,2004.6,2004.5,0.99813]
[1742480545462,4.8887,2004.6,2004.5,0.99813]
[1742480545664,0.99799,2004.9,2004.8,0.99794]
[1742480545961,0.99803,2004.7,2004.6,4.20585]
[1742480546366,0.99801,2004.8,2004.7,0.99798]
[1742480546561,5.56601,2004.8,2004.7,0.99798]
[1742480546959,5.56601,2004.8,2004.7,5.74378]
[1742480547163,5.56598,2004.8,2004.7,5.74378]
[1742480547565,4.568,2004.8,2004.7,5.74378]
[1742480547769,5.56598,2004.8,2004.7,5.74378]
[1742480547966,4.568,2004.8,2004.7,5.74378]
[1742480548270,4.568,2004.8,2004.7,9.34978]
[1742480548470,0.00746733,2005.1,2005.0,0.99788]
[1742480548676,5.57329733,2005.1,2005.0,3.2078]
[1742480548975,0.99788,2005.0,2004.9,0.99791]
[1742480549172,5.56591,2005.0,2004.9,0.99793]
[1742480549473,5.56588,2005.0,2004.9,0.99793]
[1742480549770,4.568,2005.0,2004.9,0.99793]
[1742480550273,5.56588,2005.0,2004.9,0.99793]
[1742480550567,4.568,2005.0,2004.9,0.99793]
[1742480550969,4.568,2005.0,2004.9,5.74403]
[1742480551374,0.99788,2005.0,2004.9,5.74403]
[1742480551574,0.00746733,2005.1,2005.0,0.99788]
[1742480551766,0.00746733,2005.1,2005.0,3.603]
[1742480551961,0.00746733,2005.1,2005.0,4.60088]
[1742480552171,1.00529733,2005.1,2005.0,4.60088]
[1742480553476,0.00746733,2005.1,2005.0,7.80868]
[1742480553771,1.00529733,2005.1,2005.0,7.80868]
[1742480554270,0.00746733,2005.1,2005.0,7.80868]
[1742480554469,0.00746733,2005.1,2005.0,12.34918]
[1742480554675,0.00746733,2005.1,2005.0,16.80008]
[1742480555281,4.8539,2005.5,2005.4,0.99768]
[1742480555877,5.85153,2005.5,2005.4,5.46478]
[1742480556269,5.85153,2005.5,2005.4,4.4671]
[1742480556470,0.99768,2005.4,2005.3,6.8048]
[1742480557076,0.99768,2005.4,2005.3,3.2078]
[1742480557372,0.99773,2005.3,2005.2,0.00746733]
[1742480559080,5.77612,2005.4,2005.3,0.99773]
[1742480560377,0.99773,2005.3,2005.2,5.86130733]
[1742480560578,4.7784,2005.4,2005.2,4.86356733]
[1742480560774,4.7784,2005.4,2005.3,0.99773]
[1742480560979,5.77608,2005.4,2005.3,0.99773]
[1742480561177,0.99773,2005.3,2005.2,5.86131733]
[1742480561778,0.99773,2005.3,2005.2,4.86356733]
[1742480562076,0.99773,2005.3,2005.2,5.86134733]
[1742480562273,0.99773,2005.3,2005.2,0.00746733]
[1742480562774,5.56723,2005.3,2005.2,0.00746733]
[1742480563585,5.56723,2005.3,2005.2,5.54264733]
[1742480564178,5.56723,2005.3,2005.2,4.54486733]
[1742480564478,5.56723,2005.3,2005.2,0.00746733]
[1742480564874,5.56723,2005.3,2005.2,1.00524733]
[1742480565073,5.56723,2005.3,2005.2,5.86234733]
[1742480565280,5.56723,2005.3,2005.2,4.86456733]
[1742480565585,5.56723,2005.3,2005.2,0.00746733]
[1742480569585,2.49458,2005.1,2004.7,7.80181]
[1742480569883,0.99798,2004.8,2004.7,4.20583]
[1742480570080,0.99803,2004.7,2004.6,61.05004704]
[1742480570284,5.53553,2004.7,2004.6,46.098]
[1742480570478,0.99813,2004.5,2004.4,7.8221]
[1742480570684,0.99813,2004.5,2004.4,3.2078]
[1742480571783,0.99823,2004.3,2004.2,0.00746733]
[1742480572385,5.79963,2004.3,2004.2,0.00746733]
[1742480579696,9.39663,2004.3,2004.2,0.00746733]
[1742480580294,9.39663,2004.3,2004.2,7.33e-06]
[1742480580483,11.89663,2004.3,2004.2,7.33e-06]
[1742480583199,9.39663,2004.3,2004.2,7.33e-06]
[1742480585398,5.79963,2004.3,2004.2,7.33e-06]
[1742480585592,9.39663,2004.3,2004.2,7.33e-06]
[1742480587794,5.79963,2004.3,2004.2,7.33e-06]
[1742480590197,5.79963,2004.3,2004.2,4.87780733]
[1742480590397,9.08656733,2004.7,2004.2,4.87780733]
[1742480590398,12.29436733,2004.7,2004.2,4.87780733]
[1742480590603,1.00550733,2004.7,2004.3,7.8156]
[1742480590800,0.00746733,2004.7,2004.4,9.47296]
[1742480590999,0.00746733,2004.7,2004.5,0.99813]
[1742480591197,1.00549733,2004.7,2004.6,4.8778]
[1742480592299,1.00549733,2004.7,2004.6,5.87588]
[1742480592503,1.00549733,2004.7,2004.6,8.0856]
[1742480592704,0.00746733,2004.7,2004.6,9.08368]
[1742480592903,3.2078,2005.1,2004.8,0.99798]
[1742480593208,0.99788,2005.0,2004.9,12.432]
[1742480593905,0.99788,2005.0,2004.9,9.2242]
[1742480596000,0.99788,2005.0,2004.9,4.5871]
[1742480596695,3.21526733,2005.2,2004.9,10.6831]
[1742480596895,1.00529733,2005.2,2005.1,0.99783]
[1742480597107,0.00746733,2005.2,2005.1,0.99783]
[1742480597310,0.00746733,2005.2,2005.1,10.00803]
[1742480597500,0.00746733,2005.2,2005.1,9.0102]
[1742480597897,1.00524733,2005.2,2005.1,9.0102]
[1742480598101,0.00746733,2005.2,2005.1,12.50803]
[1742480598402,0.9976,2005.6,2005.4,0.99766]
[1742480598712,0.9976,2005.6,2005.5,9.4493]
[1742480600600,0.9976,2005.6,2005.5,10.44693]
[1742480600797,0.9976,2005.6,2005.5,9.4493]
[1742480602295,0.99768,2005.4,2005.3,0.00746733]
[1742480602907,9.01258,2005.4,2005.3,0.00746733]
[1742480603810,11.51258,2005.4,2005.3,0.00746733]
[1742480604010,11.51258,2005.4,2005.3,7.33e-06]
[1742480604812,10.60070863,2005.4,2004.3,58.2389]
[1742480605011,0.99818,2004.4,2004.3,46.104]
[1742480605218,0.99828,2004.2,2004.1,3.595]
[1742480605508,3.2078,2004.5,2004.2,0.99826]
[1742480605715,0.99828,2004.2,2004.1,4.59328]
[1742480605910,3.2078,2004.8,2004.1,3.595]
[1742480606102,6.85099,2005.0,2004.1,3.595]
[1742480606103,6.92597,2004.9,2004.4,4.20595]
[1742480606307,0.99812,2004.6,2004.5,12.8716]
[1742480606609,0.99812,2004.6,2004.5,17.4284]
[1742480607002,5.43661733,2004.7,2004.6,0.99808]
[1742480607203,0.99808,2004.6,2004.5,13.8334]
[1742480607404,5.78208,2004.6,2004.5,9.3291]
[1742480607910,2.57428,2004.6,2004.5,9.3291]
[1742480608114,0.00746733,2004.7,2004.6,0.99808]
[1742480608409,7.02121,2005.4,2004.7,2.49508]
[1742480608608,0.99786,2005.1,2005.0,0.99787]
[1742480608917,0.9979,2005.0,2004.9,0.99791]
[1742480609115,0.9979,2005.0,2004.9,4.6404]